[Event "December 12 Late 2023"]
[Site "https://www.chess.com"]
[Date "2023.12.12"]
[Round "8"]
[White "Zwirs, Nico"]
[Black "Goltsev, Dmitry"]
[Result "1-0"]
[Board "30"]
[TimeControl "180+1"]
[WhiteFideId "1036432"]
[BlackFideId "24176710"]
[WhiteElo "2844"]
[BlackElo "2673"]
[WhiteTeam "NED"]
[BlackTeam "RUS"]
[WhiteClock "0:00:41"]
[BlackClock "0:00:09"]

1. e4 {[%clk 0:03:00]}  e6 {[%clk 0:02:59]} 2. d4 {[%clk 0:03:00]}  d5 {[%clk 0:03:00]} 3. Nd2 {[%clk 0:03:01]}  c5 {[%clk 0:03:00]} 4. Ngf3 {[%clk 0:03:01]}  Nf6 {[%clk 0:02:59]} 5. exd5 {[%clk 0:02:59]}  exd5 {[%clk 0:02:59]} 6. Bb5+ {[%clk 0:03:00]}  Nc6 {[%clk 0:02:59]} 7. O-O {[%clk 0:03:00]}  Be7 {[%clk 0:02:59]} 8. dxc5 {[%clk 0:03:00]}  Bxc5 {[%clk 0:03:00]} 9. Nb3 {[%clk 0:03:00]}  Bb6 {[%clk 0:03:00]} 10. Re1+ {[%clk 0:02:59]}  Be6 {[%clk 0:03:00]} 11. c3 {[%clk 0:02:57]}  O-O {[%clk 0:02:54]} 12. Be3 {[%clk 0:02:57]}  Bg4 {[%clk 0:02:50]} 13. h3 {[%clk 0:02:55]}  Bh5 {[%clk 0:02:49]} 14. Be2 {[%clk 0:02:50]}  Re8 {[%clk 0:02:34]} 15. Bxb6 {[%clk 0:02:48]}  Qxb6 {[%clk 0:02:33]} 16. Nfd4 {[%clk 0:02:40]}  Nxd4 {[%clk 0:02:32]} 17. cxd4 {[%clk 0:02:30]}  Bxe2 {[%clk 0:02:12]} 18. Rxe2 {[%clk 0:02:30]}  Rxe2 {[%clk 0:02:11]} 19. Qxe2 {[%clk 0:02:31]}  Re8 {[%clk 0:02:11]} 20. Qd3 {[%clk 0:02:30]}  Ne4 {[%clk 0:02:05]} 21. Re1 {[%clk 0:02:22]}  Qb4 {[%clk 0:01:59]} 22. Re3 {[%clk 0:02:15]}  Rc8 {[%clk 0:01:51]} 23. f3 {[%clk 0:02:10]}  Nf6 {[%clk 0:01:46]} 24. Re2 {[%clk 0:02:03]}  b6 {[%clk 0:01:33]} 25. g4 {[%clk 0:01:53]}  h6 {[%clk 0:01:12]} 26. Kg2 {[%clk 0:01:53]}  Qc4 {[%clk 0:01:01]} 27. Qd2 {[%clk 0:01:31]}  Rc7 {[%clk 0:00:48]} 28. h4 {[%clk 0:01:28]}  Kh7 {[%clk 0:00:45]} 29. Kf2 {[%clk 0:01:11]}  a5 {[%clk 0:00:37]} 30. Qf4 {[%clk 0:01:08]}  a4 {[%clk 0:00:27]} 31. Nd2 {[%clk 0:01:08]}  Qd3 {[%clk 0:00:23]} 32. Qxc7 {[%clk 0:01:05]}  Qxd4+ {[%clk 0:00:21]} 33. Kg2 {[%clk 0:01:03]}  Qd3 {[%clk 0:00:19]} 34. Qe5 {[%clk 0:01:00]}  g6 {[%clk 0:00:16]} 35. Rf2 {[%clk 0:00:49]}  Nd7 {[%clk 0:00:14]} 36. Qe7 {[%clk 0:00:46]}  Nc5 {[%clk 0:00:14]} 37. Qxf7+ {[%clk 0:00:46]}  Kh8 {[%clk 0:00:14]} 38. Qe8+ {[%clk 0:00:42]}  Kh7 {[%clk 0:00:14]} 39. Qe7+ {[%clk 0:00:41]}  Kh8 {[%clk 0:00:09]} 40. Re2 {[%clk 0:00:41]} 1-0

[Event "December 12 Late 2023"]
[Site "https://www.chess.com"]
[Date "2023.12.12"]
[Round "8"]
[White "Boyer, Mahel"]
[Black "Wieczorek, Oskar"]
[Result "1-0"]
[Board "32"]
[TimeControl "180+1"]
[WhiteFideId "45102422"]
[BlackFideId "1133950"]
[WhiteElo "2620"]
[BlackElo "2770"]
[WhiteTeam "FRA"]
[BlackTeam "POL"]
[WhiteClock "0:00:40"]
[BlackClock "0:00:04"]

1. e4 {[%clk 0:02:52]}  c5 {[%clk 0:02:59]} 2. d3 {[%clk 0:02:52]}  e6 {[%clk 0:02:59]} 3. g3 {[%clk 0:02:52]}  Nc6 {[%clk 0:02:58]} 4. Bg2 {[%clk 0:02:53]}  g6 {[%clk 0:02:59]} 5. f4 {[%clk 0:02:53]}  Bg7 {[%clk 0:02:59]} 6. Nf3 {[%clk 0:02:54]}  d6 {[%clk 0:02:59]} 7. O-O {[%clk 0:02:52]}  Nge7 {[%clk 0:03:00]} 8. c3 {[%clk 0:02:47]}  f5 {[%clk 0:02:56]} 9. Be3 {[%clk 0:02:46]}  O-O {[%clk 0:02:55]} 10. Nbd2 {[%clk 0:02:45]}  Kh8 {[%clk 0:02:53]} 11. Re1 {[%clk 0:02:43]}  b6 {[%clk 0:02:45]} 12. Bf2 {[%clk 0:02:42]}  Rb8 {[%clk 0:02:16]} 13. Qc2 {[%clk 0:02:28]}  b5 {[%clk 0:02:15]} 14. exf5 {[%clk 0:02:25]}  gxf5 {[%clk 0:02:07]} 15. Ng5 {[%clk 0:02:24]}  Rf6 {[%clk 0:01:59]} 16. a4 {[%clk 0:02:14]}  b4 {[%clk 0:01:50]} 17. Nc4 {[%clk 0:02:11]}  h6 {[%clk 0:01:46]} 18. Nf3 {[%clk 0:01:59]}  Nd5 {[%clk 0:01:44]} 19. Nh4 {[%clk 0:01:51]}  Nce7 {[%clk 0:01:28]} 20. Rad1 {[%clk 0:01:28]}  Ba6 {[%clk 0:01:21]} 21. Rd2 {[%clk 0:01:20]}  Qd7 {[%clk 0:01:05]} 22. Rde2 {[%clk 0:01:15]}  Kg8 {[%clk 0:01:04]} 23. a5 {[%clk 0:01:10]}  Re8 {[%clk 0:00:53]} 24. Bf3 {[%clk 0:01:05]}  bxc3 {[%clk 0:00:26]} 25. bxc3 {[%clk 0:01:05]}  Bxc4 {[%clk 0:00:27]} 26. dxc4 {[%clk 0:01:06]}  Nc7 {[%clk 0:00:28]} 27. Rd1 {[%clk 0:00:58]}  Rb8 {[%clk 0:00:21]} 28. Bxc5 {[%clk 0:00:57]}  Ne8 {[%clk 0:00:20]} 29. Bf2 {[%clk 0:00:51]}  Qc7 {[%clk 0:00:19]} 30. Qa4 {[%clk 0:00:49]}  Kh7 {[%clk 0:00:18]} 31. Bd4 {[%clk 0:00:43]}  Rf7 {[%clk 0:00:17]} 32. Rxe6 {[%clk 0:00:43]}  Bxd4+ {[%clk 0:00:10]} 33. cxd4 {[%clk 0:00:44]}  Ng8 {[%clk 0:00:08]} 34. Bh5 {[%clk 0:00:43]}  Re7 {[%clk 0:00:08]} 35. Bg6+ {[%clk 0:00:39]}  Kh8 {[%clk 0:00:08]} 36. Bxf5 {[%clk 0:00:39]}  Rxe6 {[%clk 0:00:08]} 37. Bxe6 {[%clk 0:00:40]}  Rb3 {[%clk 0:00:04]} 38. Qxb3 {[%clk 0:00:40]} 1-0

[Event "December 12 Late 2023"]
[Site "https://www.chess.com"]
[Date "2023.12.12"]
[Round "8"]
[White "Sanchez Enriquez, Oscar Gerardo"]
[Black "Shuvalova, Polina"]
[Result "1-0"]
[Board "34"]
[TimeControl "180+1"]
[WhiteFideId "5106311"]
[BlackFideId "24171760"]
[WhiteElo "2536"]
[BlackElo "2741"]
[WhiteTeam "MEX"]
[BlackTeam "RUS"]
[WhiteClock "0:00:11"]
[BlackClock "0:00:01"]

1. e4 {[%clk 0:03:00]}  c6 {[%clk 0:03:00]} 2. d4 {[%clk 0:03:00]}  d5 {[%clk 0:02:59]} 3. e5 {[%clk 0:03:00]}  Bf5 {[%clk 0:02:59]} 4. Nf3 {[%clk 0:03:01]}  e6 {[%clk 0:02:59]} 5. Be2 {[%clk 0:03:01]}  Ne7 {[%clk 0:02:59]} 6. O-O {[%clk 0:03:01]}  Ng6 {[%clk 0:02:57]} 7. c4 {[%clk 0:02:52]}  Nd7 {[%clk 0:02:54]} 8. Nc3 {[%clk 0:02:51]}  dxc4 {[%clk 0:02:35]} 9. Bxc4 {[%clk 0:02:49]}  Nb6 {[%clk 0:02:36]} 10. Bb3 {[%clk 0:02:47]}  Bg4 {[%clk 0:02:35]} 11. Be3 {[%clk 0:02:46]}  Be7 {[%clk 0:02:33]} 12. h3 {[%clk 0:02:46]}  Bxf3 {[%clk 0:02:32]} 13. Qxf3 {[%clk 0:02:47]}  Nh4 {[%clk 0:02:31]} 14. Qg4 {[%clk 0:02:42]}  Nf5 {[%clk 0:02:31]} 15. Bc2 {[%clk 0:02:43]}  g6 {[%clk 0:02:30]} 16. Rad1 {[%clk 0:02:39]}  h5 {[%clk 0:02:30]} 17. Qe4 {[%clk 0:02:31]}  Qd7 {[%clk 0:02:21]} 18. Bb3 {[%clk 0:02:21]}  O-O-O {[%clk 0:02:19]} 19. a4 {[%clk 0:02:21]}  a5 {[%clk 0:02:15]} 20. Rd3 {[%clk 0:02:08]}  Kb8 {[%clk 0:02:15]} 21. Rfd1 {[%clk 0:02:06]}  Nd5 {[%clk 0:02:08]} 22. Bxd5 {[%clk 0:01:57]}  cxd5 {[%clk 0:02:06]} 23. Qf3 {[%clk 0:01:58]}  Bb4 {[%clk 0:01:59]} 24. Nb5 {[%clk 0:01:53]}  h4 {[%clk 0:01:59]} 25. Bd2 {[%clk 0:01:46]}  Rc8 {[%clk 0:01:55]} 26. Rb3 {[%clk 0:01:21]}  Nxd4 {[%clk 0:01:50]} 27. Nxd4 {[%clk 0:01:15]}  Rc4 {[%clk 0:01:31]} 28. Nb5 {[%clk 0:01:03]}  Bxd2 {[%clk 0:00:46]} 29. Rxd2 {[%clk 0:01:03]}  Rhc8 {[%clk 0:00:44]} 30. Qe3 {[%clk 0:01:00]}  R8c5 {[%clk 0:00:39]} 31. Rc3 {[%clk 0:00:48]}  Rxc3 {[%clk 0:00:34]} 32. bxc3 {[%clk 0:00:49]}  b6 {[%clk 0:00:34]} 33. Rd4 {[%clk 0:00:43]}  Qc6 {[%clk 0:00:29]} 34. Rxh4 {[%clk 0:00:42]}  Kb7 {[%clk 0:00:28]} 35. Rh7 {[%clk 0:00:39]}  Ka6 {[%clk 0:00:16]} 36. Rxf7 {[%clk 0:00:20]}  Rxb5 {[%clk 0:00:17]} 37. axb5+ {[%clk 0:00:21]}  Qxb5 {[%clk 0:00:17]} 38. Rf6 {[%clk 0:00:19]}  a4 {[%clk 0:00:15]} 39. Qc1 {[%clk 0:00:12]}  Qb3 {[%clk 0:00:14]} 40. Rf3 {[%clk 0:00:08]}  Qc4 {[%clk 0:00:08]} 41. Qb2 {[%clk 0:00:07]}  b5 {[%clk 0:00:08]} 42. g3 {[%clk 0:00:06]}  Qe4 {[%clk 0:00:07]} 43. Rf4 {[%clk 0:00:05]}  Qxe5 {[%clk 0:00:07]} 44. Rb4 {[%clk 0:00:06]}  Qb8 {[%clk 0:00:04]} 45. Qe2 {[%clk 0:00:04]}  Qb6 {[%clk 0:00:03]} 46. Rxa4+ {[%clk 0:00:04]}  Kb7 {[%clk 0:00:04]} 47. Rb4 {[%clk 0:00:05]}  Kc6 {[%clk 0:00:05]} 48. Qb2 {[%clk 0:00:05]}  Qc5 {[%clk 0:00:05]} 49. Qb3 {[%clk 0:00:06]}  Kb6 {[%clk 0:00:03]} 50. Qa3 {[%clk 0:00:06]}  g5 {[%clk 0:00:03]} 51. Qb2 {[%clk 0:00:06]}  Kc6 {[%clk 0:00:03]} 52. Qd2 {[%clk 0:00:06]}  Kb6 {[%clk 0:00:03]} 53. Qd4 {[%clk 0:00:07]}  Kc6 {[%clk 0:00:02]} 54. Qxc5+ {[%clk 0:00:07]}  Kxc5 {[%clk 0:00:03]} 55. h4 {[%clk 0:00:07]}  gxh4 {[%clk 0:00:03]} 56. gxh4 {[%clk 0:00:08]}  e5 {[%clk 0:00:04]} 57. h5 {[%clk 0:00:09]}  d4 {[%clk 0:00:05]} 58. h6 {[%clk 0:00:09]}  dxc3 {[%clk 0:00:05]} 59. Rb1 {[%clk 0:00:09]}  c2 {[%clk 0:00:04]} 60. Rc1 {[%clk 0:00:10]}  Kd4 {[%clk 0:00:05]} 61. Rxc2 {[%clk 0:00:10]}  Kd3 {[%clk 0:00:05]} 62. Rb2 {[%clk 0:00:11]}  Kc3 {[%clk 0:00:01]} 63. Rxb5 {[%clk 0:00:11]} 1-0

[Event "December 12 Late 2023"]
[Site "https://www.chess.com"]
[Date "2023.12.12"]
[Round "8"]
[White "Rustemov, Alexander"]
[Black "Filgueira, Hernan"]
[Result "0-1"]
[Board "36"]
[TimeControl "180+1"]
[WhiteFideId "4119002"]
[BlackFideId "101770"]
[WhiteElo "2804"]
[BlackElo "2570"]
[WhiteTeam "RUS"]
[BlackTeam "ARG"]
[WhiteClock "0:00:50"]
[BlackClock "0:00:03"]

1. d4 {[%clk 0:02:57]}  d6 {[%clk 0:02:59]} 2. Nf3 {[%clk 0:02:55]}  g6 {[%clk 0:02:57]} 3. c4 {[%clk 0:02:56]}  f5 {[%clk 0:02:56]} 4. g3 {[%clk 0:02:55]}  Nf6 {[%clk 0:02:56]} 5. Bg2 {[%clk 0:02:56]}  Bg7 {[%clk 0:02:57]} 6. O-O {[%clk 0:02:56]}  O-O {[%clk 0:02:57]} 7. Nc3 {[%clk 0:02:56]}  c6 {[%clk 0:02:58]} 8. Qc2 {[%clk 0:02:55]}  Qe8 {[%clk 0:02:57]} 9. e4 {[%clk 0:02:49]}  e5 {[%clk 0:02:56]} 10. Re1 {[%clk 0:02:44]}  f4 {[%clk 0:02:54]} 11. gxf4 {[%clk 0:02:29]}  Nh5 {[%clk 0:02:38]} 12. fxe5 {[%clk 0:02:25]}  Bg4 {[%clk 0:02:38]} 13. exd6 {[%clk 0:02:16]}  Bxf3 {[%clk 0:02:37]} 14. e5 {[%clk 0:02:13]}  Bxg2 {[%clk 0:02:23]} 15. Kxg2 {[%clk 0:02:14]}  Qe6 {[%clk 0:02:23]} 16. Qe2 {[%clk 0:02:10]}  Nd7 {[%clk 0:02:12]} 17. Bg5 {[%clk 0:02:04]}  Qf5 {[%clk 0:02:02]} 18. Ne4 {[%clk 0:01:58]}  h6 {[%clk 0:02:00]} 19. Bd2 {[%clk 0:01:57]}  Rae8 {[%clk 0:01:52]} 20. Ng3 {[%clk 0:01:57]}  Nxg3 {[%clk 0:01:47]} 21. hxg3 {[%clk 0:01:56]}  c5 {[%clk 0:01:48]} 22. f4 {[%clk 0:01:47]}  cxd4 {[%clk 0:01:41]} 23. Qe4 {[%clk 0:01:47]}  Qxe4+ {[%clk 0:01:01]} 24. Rxe4 {[%clk 0:01:47]}  Kf7 {[%clk 0:00:59]} 25. Rxd4 {[%clk 0:01:38]}  Ke6 {[%clk 0:00:55]} 26. g4 {[%clk 0:01:38]}  Rh8 {[%clk 0:00:42]} 27. Rh1 {[%clk 0:01:32]}  Ref8 {[%clk 0:00:41]} 28. Re4 {[%clk 0:01:25]}  h5 {[%clk 0:00:36]} 29. gxh5 {[%clk 0:01:23]}  Rxh5 {[%clk 0:00:34]} 30. Rxh5 {[%clk 0:01:18]}  gxh5 {[%clk 0:00:34]} 31. Re1 {[%clk 0:01:18]}  Nc5 {[%clk 0:00:27]} 32. Rh1 {[%clk 0:01:15]}  Rf5 {[%clk 0:00:18]} 33. b3 {[%clk 0:01:05]}  Nd3 {[%clk 0:00:10]} 34. Kg3 {[%clk 0:01:03]}  Bh6 {[%clk 0:00:09]} 35. Rh4 {[%clk 0:01:01]}  Nxe5 {[%clk 0:00:05]} 36. fxe5 {[%clk 0:00:55]}  Bxd2 {[%clk 0:00:05]} 37. d7 {[%clk 0:00:56]}  Be1+ {[%clk 0:00:03]} 38. Kg2 {[%clk 0:00:50]}  Bxh4 {[%clk 0:00:03]} 0-1

[Event "December 12 Late 2023"]
[Site "https://www.chess.com"]
[Date "2023.12.12"]
[Round "8"]
[White "Khater, Sherif"]
[Black "Matinian, Nikita"]
[Result "0-1"]
[Board "37"]
[TimeControl "180+1"]
[WhiteFideId "2034280"]
[BlackFideId "24129100"]
[WhiteElo "2563"]
[BlackElo "2762"]
[WhiteTeam "USA"]
[BlackTeam "FID"]
[WhiteClock "0:00:38"]
[BlackClock "0:01:41"]

1. b3 {[%clk 0:03:00]}  Nf6 {[%clk 0:02:59]} 2. Bb2 {[%clk 0:03:01]}  g6 {[%clk 0:03:00]} 3. Nf3 {[%clk 0:03:01]}  Bg7 {[%clk 0:03:00]} 4. g3 {[%clk 0:03:02]}  d6 {[%clk 0:02:59]} 5. Bg2 {[%clk 0:03:03]}  e5 {[%clk 0:02:59]} 6. d3 {[%clk 0:03:02]}  c5 {[%clk 0:02:59]} 7. e4 {[%clk 0:03:02]}  Nc6 {[%clk 0:03:00]} 8. O-O {[%clk 0:03:03]}  h5 {[%clk 0:02:57]} 9. h4 {[%clk 0:03:03]}  Bg4 {[%clk 0:02:56]} 10. Nbd2 {[%clk 0:03:03]}  Qd7 {[%clk 0:02:56]} 11. Qc1 {[%clk 0:02:49]}  Bh6 {[%clk 0:02:50]} 12. Qe1 {[%clk 0:02:41]}  O-O-O {[%clk 0:02:43]} 13. Nc4 {[%clk 0:02:39]}  Kb8 {[%clk 0:02:39]} 14. Bc1 {[%clk 0:02:33]}  Bxc1 {[%clk 0:02:38]} 15. Qxc1 {[%clk 0:02:32]}  Bxf3 {[%clk 0:02:35]} 16. Bxf3 {[%clk 0:02:33]}  Nd4 {[%clk 0:02:36]} 17. Qd1 {[%clk 0:02:23]}  Rdg8 {[%clk 0:02:26]} 18. Bg2 {[%clk 0:02:22]}  g5 {[%clk 0:02:26]} 19. c3 {[%clk 0:02:19]}  Ne6 {[%clk 0:02:21]} 20. Qf3 {[%clk 0:02:09]}  Rh6 {[%clk 0:02:10]} 21. Ne3 {[%clk 0:01:55]}  gxh4 {[%clk 0:02:06]} 22. Nf5 {[%clk 0:01:55]}  Ng5 {[%clk 0:02:06]} 23. Qe3 {[%clk 0:01:52]}  Ng4 {[%clk 0:02:02]} 24. Qd2 {[%clk 0:01:40]}  h3 {[%clk 0:01:51]} 25. Nxh6 {[%clk 0:01:33]}  hxg2 {[%clk 0:01:51]} 26. Nxg4 {[%clk 0:00:38]}  Qxg4 {[%clk 0:01:41]} 0-1

[Event "December 12 Late 2023"]
[Site "https://www.chess.com"]
[Date "2023.12.12"]
[Round "8"]
[White "Dyachuk, Artem"]
[Black "Silva Lucena, Cristian"]
[Result "1-0"]
[Board "40"]
[TimeControl "180+1"]
[WhiteFideId "34107924"]
[BlackFideId "2232588"]
[WhiteElo "2692"]
[BlackElo "2552"]
[WhiteTeam "UKR"]
[BlackTeam "ESP"]
[WhiteClock "0:00:12"]
[BlackClock "0:00:08"]

1. e4 {[%clk 0:03:00]}  e5 {[%clk 0:02:59]} 2. Nf3 {[%clk 0:02:58]}  Nf6 {[%clk 0:03:00]} 3. Nxe5 {[%clk 0:02:57]}  Nxe4 {[%clk 0:03:00]} 4. Qe2 {[%clk 0:02:56]}  Qe7 {[%clk 0:03:00]} 5. Qxe4 {[%clk 0:02:56]}  d6 {[%clk 0:03:01]} 6. f4 {[%clk 0:02:57]}  dxe5 {[%clk 0:03:01]} 7. fxe5 {[%clk 0:02:58]}  f5 {[%clk 0:03:01]} 8. Qe3 {[%clk 0:02:55]}  Nc6 {[%clk 0:03:01]} 9. Nc3 {[%clk 0:02:53]}  Nb4 {[%clk 0:02:58]} 10. Kd1 {[%clk 0:02:50]}  Be6 {[%clk 0:02:55]} 11. a3 {[%clk 0:02:48]}  Nc6 {[%clk 0:02:55]} 12. Bb5 {[%clk 0:02:40]}  g5 {[%clk 0:02:54]} 13. d4 {[%clk 0:02:38]}  f4 {[%clk 0:02:54]} 14. Qe4 {[%clk 0:02:36]}  O-O-O {[%clk 0:02:42]} 15. Bxc6 {[%clk 0:02:22]}  bxc6 {[%clk 0:02:43]} 16. Bd2 {[%clk 0:02:22]}  Qd7 {[%clk 0:02:38]} 17. Ne2 {[%clk 0:02:12]}  Bd5 {[%clk 0:02:37]} 18. Qd3 {[%clk 0:02:09]}  Bxg2 {[%clk 0:02:38]} 19. Rg1 {[%clk 0:02:05]}  f3 {[%clk 0:02:38]} 20. Ke1 {[%clk 0:01:44]}  g4 {[%clk 0:02:11]} 21. Be3 {[%clk 0:01:37]}  Be7 {[%clk 0:02:08]} 22. Ng3 {[%clk 0:01:35]}  h5 {[%clk 0:02:06]} 23. Ne4 {[%clk 0:01:32]}  c5 {[%clk 0:01:49]} 24. Qa6+ {[%clk 0:01:13]}  Kb8 {[%clk 0:01:49]} 25. Rd1 {[%clk 0:01:12]}  Bh4+ {[%clk 0:01:12]} 26. Bf2 {[%clk 0:01:04]}  Bxf2+ {[%clk 0:01:02]} 27. Kxf2 {[%clk 0:01:05]}  cxd4 {[%clk 0:00:55]} 28. Rd3 {[%clk 0:01:04]}  Ka8 {[%clk 0:00:48]} 29. Nc5 {[%clk 0:00:59]}  Qd5 {[%clk 0:00:45]} 30. Rb3 {[%clk 0:00:54]}  Rb8 {[%clk 0:00:44]} 31. Ne6 {[%clk 0:00:53]}  Rhc8 {[%clk 0:00:28]} 32. Rd1 {[%clk 0:00:49]}  Qxe5 {[%clk 0:00:20]} 33. Rxd4 {[%clk 0:00:47]}  c5 {[%clk 0:00:09]} 34. Ra4 {[%clk 0:00:13]}  Bh3 {[%clk 0:00:08]} 35. Qxa7# {[%clk 0:00:12]} 1-0

[Event "December 12 Late 2023"]
[Site "https://www.chess.com"]
[Date "2023.12.12"]
[Round "8"]
[White "Wu, Derek"]
[Black "Silva, Kaua Marques"]
[Result "0-1"]
[Board "41"]
[TimeControl "180+1"]
[WhiteFideId "30914558"]
[BlackFideId "22701168"]
[WhiteElo "2691"]
[BlackElo "2550"]
[WhiteTeam "USA"]
[BlackTeam "BRA"]
[WhiteClock "0:00:00"]
[BlackClock "0:00:21"]

1. d4 {[%clk 0:03:00]}  c5 {[%clk 0:02:56]} 2. d5 {[%clk 0:02:59]}  e6 {[%clk 0:02:56]} 3. Nc3 {[%clk 0:02:59]}  exd5 {[%clk 0:02:50]} 4. Nxd5 {[%clk 0:02:59]}  Nf6 {[%clk 0:02:48]} 5. Bg5 {[%clk 0:02:42]}  Be7 {[%clk 0:02:48]} 6. Nxe7 {[%clk 0:02:39]}  Qxe7 {[%clk 0:02:47]} 7. Nf3 {[%clk 0:02:40]}  O-O {[%clk 0:02:43]} 8. e3 {[%clk 0:02:39]}  h6 {[%clk 0:02:41]} 9. Bh4 {[%clk 0:02:38]}  d5 {[%clk 0:02:36]} 10. c3 {[%clk 0:02:31]}  Rd8 {[%clk 0:02:24]} 11. Be2 {[%clk 0:02:30]}  Nc6 {[%clk 0:02:24]} 12. O-O {[%clk 0:02:30]}  Ne5 {[%clk 0:02:21]} 13. Qa4 {[%clk 0:02:21]}  Nxf3+ {[%clk 0:02:16]} 14. Bxf3 {[%clk 0:02:22]}  Qe5 {[%clk 0:02:12]} 15. Rad1 {[%clk 0:02:12]}  Be6 {[%clk 0:02:11]} 16. Qb5 {[%clk 0:02:04]}  b6 {[%clk 0:02:10]} 17. c4 {[%clk 0:02:01]}  g5 {[%clk 0:02:07]} 18. Bg3 {[%clk 0:02:00]}  Qf5 {[%clk 0:02:08]} 19. cxd5 {[%clk 0:01:45]}  Bxd5 {[%clk 0:02:09]} 20. Bxd5 {[%clk 0:01:36]}  Rxd5 {[%clk 0:02:04]} 21. h4 {[%clk 0:01:27]}  Rad8 {[%clk 0:02:01]} 22. Rxd5 {[%clk 0:01:26]}  Qxd5 {[%clk 0:01:58]} 23. hxg5 {[%clk 0:01:27]}  hxg5 {[%clk 0:01:57]} 24. Qa4 {[%clk 0:01:23]}  Rd7 {[%clk 0:01:56]} 25. a3 {[%clk 0:01:15]}  Kg7 {[%clk 0:01:52]} 26. Qb5 {[%clk 0:00:54]}  c4 {[%clk 0:01:47]} 27. Qb4 {[%clk 0:00:45]}  Ne4 {[%clk 0:01:45]} 28. Bh2 {[%clk 0:00:39]}  a5 {[%clk 0:01:31]} 29. Qa4 {[%clk 0:00:37]}  Qd3 {[%clk 0:01:23]} 30. Qc6 {[%clk 0:00:30]}  Rd5 {[%clk 0:01:09]} 31. Qxb6 {[%clk 0:00:29]}  Rf5 {[%clk 0:01:02]} 32. Qd4+ {[%clk 0:00:22]}  Qxd4 {[%clk 0:00:57]} 33. exd4 {[%clk 0:00:23]}  Rb5 {[%clk 0:00:54]} 34. f3 {[%clk 0:00:23]}  Nd2 {[%clk 0:00:51]} 35. Rd1 {[%clk 0:00:14]}  Rxb2 {[%clk 0:00:51]} 36. d5 {[%clk 0:00:14]}  f6 {[%clk 0:00:51]} 37. d6 {[%clk 0:00:12]}  Kf7 {[%clk 0:00:43]} 38. Kf2 {[%clk 0:00:10]}  c3 {[%clk 0:00:37]} 39. Ke2 {[%clk 0:00:08]}  Nb3+ {[%clk 0:00:22]} 40. Ke3 {[%clk 0:00:06]}  c2 {[%clk 0:00:22]} 41. d7 {[%clk 0:00:05]}  cxd1=Q {[%clk 0:00:22]} 42. d8=Q {[%clk 0:00:00]}  Qxd8 {[%clk 0:00:21]} 0-1

[Event "December 12 Late 2023"]
[Site "https://www.chess.com"]
[Date "2023.12.12"]
[Round "8"]
[White "Rama, Tejas"]
[Black "Goryachkina, Aleksandra"]
[Result "0-1"]
[Board "45"]
[TimeControl "180+1"]
[WhiteFideId "30907381"]
[BlackFideId "4147103"]
[WhiteElo "2534"]
[BlackElo "2660"]
[WhiteTeam "USA"]
[BlackTeam "FID"]
[WhiteClock "0:00:09"]
[BlackClock "0:00:06"]

1. d4 {[%clk 0:02:59]}  Nf6 {[%clk 0:02:59]} 2. c4 {[%clk 0:02:58]}  e6 {[%clk 0:02:59]} 3. Nf3 {[%clk 0:02:57]}  d5 {[%clk 0:02:59]} 4. Nc3 {[%clk 0:02:57]}  Nbd7 {[%clk 0:02:59]} 5. Bf4 {[%clk 0:02:57]}  dxc4 {[%clk 0:02:59]} 6. e3 {[%clk 0:02:56]}  b5 {[%clk 0:02:59]} 7. Nxb5 {[%clk 0:02:52]}  Bb4+ {[%clk 0:02:59]} 8. Nc3 {[%clk 0:02:39]}  Nd5 {[%clk 0:02:55]} 9. a3 {[%clk 0:02:31]}  Bxc3+ {[%clk 0:02:44]} 10. bxc3 {[%clk 0:02:30]}  Nxf4 {[%clk 0:02:43]} 11. exf4 {[%clk 0:02:30]}  O-O {[%clk 0:02:34]} 12. Bxc4 {[%clk 0:02:29]}  Bb7 {[%clk 0:02:33]} 13. O-O {[%clk 0:02:28]}  c5 {[%clk 0:02:29]} 14. Ne5 {[%clk 0:01:53]}  Nxe5 {[%clk 0:02:23]} 15. dxe5 {[%clk 0:01:51]}  Qh4 {[%clk 0:02:22]} 16. Qc1 {[%clk 0:01:37]}  Rad8 {[%clk 0:02:08]} 17. Qe3 {[%clk 0:01:33]}  h5 {[%clk 0:01:59]} 18. Qg3 {[%clk 0:01:16]}  Qe7 {[%clk 0:01:51]} 19. Qh3 {[%clk 0:00:57]}  h4 {[%clk 0:01:42]} 20. Qe3 {[%clk 0:00:50]}  Ba8 {[%clk 0:01:34]} 21. Be2 {[%clk 0:00:48]}  c4 {[%clk 0:01:16]} 22. Rfb1 {[%clk 0:00:43]}  Rd7 {[%clk 0:00:39]} 23. Bxc4 {[%clk 0:00:37]}  Rfd8 {[%clk 0:00:35]} 24. Be2 {[%clk 0:00:34]}  Rd2 {[%clk 0:00:31]} 25. Rb8 {[%clk 0:00:23]}  Rxb8 {[%clk 0:00:28]} 26. Qxd2 {[%clk 0:00:23]}  h3 {[%clk 0:00:28]} 27. Qd6 {[%clk 0:00:11]}  Qe8 {[%clk 0:00:26]} 28. gxh3 {[%clk 0:00:10]}  Rd8 {[%clk 0:00:25]} 29. Qc5 {[%clk 0:00:09]}  Rc8 {[%clk 0:00:25]} 30. Qd6 {[%clk 0:00:06]}  Qa4 {[%clk 0:00:23]} 31. Qd2 {[%clk 0:00:03]}  Qc6 {[%clk 0:00:17]} 32. f3 {[%clk 0:00:03]}  Qb6+ {[%clk 0:00:16]} 33. Kg2 {[%clk 0:00:03]}  Rd8 {[%clk 0:00:16]} 34. Qc1 {[%clk 0:00:03]}  Qc5 {[%clk 0:00:13]} 35. Rb1 {[%clk 0:00:03]}  Bc6 {[%clk 0:00:11]} 36. c4 {[%clk 0:00:03]}  Qa5 {[%clk 0:00:08]} 37. Qe3 {[%clk 0:00:03]}  Qa4 {[%clk 0:00:03]} 38. Rb4 {[%clk 0:00:03]}  Qc2 {[%clk 0:00:03]} 39. Rb3 {[%clk 0:00:02]}  Rd2 {[%clk 0:00:03]} 40. Rb8+ {[%clk 0:00:02]}  Kh7 {[%clk 0:00:03]} 41. Kf2 {[%clk 0:00:03]}  Rd7 {[%clk 0:00:02]} 42. Ke1 {[%clk 0:00:03]}  Ba4 {[%clk 0:00:02]} 43. Kf2 {[%clk 0:00:03]}  Rd2 {[%clk 0:00:02]} 44. Qe4+ {[%clk 0:00:03]}  Qxe4 {[%clk 0:00:03]} 45. fxe4 {[%clk 0:00:04]}  Bd1 {[%clk 0:00:03]} 46. Rb7 {[%clk 0:00:05]}  Rxe2+ {[%clk 0:00:03]} 47. Kg3 {[%clk 0:00:05]}  Rxe4 {[%clk 0:00:04]} 48. Rxf7 {[%clk 0:00:05]}  Rxc4 {[%clk 0:00:04]} 49. Rxa7 {[%clk 0:00:05]}  Bc2 {[%clk 0:00:05]} 50. Ra6 {[%clk 0:00:05]}  Bf5 {[%clk 0:00:05]} 51. a4 {[%clk 0:00:06]}  Rc3+ {[%clk 0:00:06]} 52. Kf2 {[%clk 0:00:06]}  Rxh3 {[%clk 0:00:06]} 53. Kg2 {[%clk 0:00:07]}  Ra3 {[%clk 0:00:06]} 54. a5 {[%clk 0:00:08]}  Be4+ {[%clk 0:00:06]} 55. Kf2 {[%clk 0:00:08]}  Bd5 {[%clk 0:00:06]} 56. Ra8 {[%clk 0:00:08]}  Bxa8 {[%clk 0:00:06]} 57. a6 {[%clk 0:00:09]}  Bd5 {[%clk 0:00:06]} 0-1